bitfinex-derivatives/quotes_SOLF0:USTF0_20260311
["timestamp","ask_amount","ask_price","bid_price","bid_amount"]
[1773190974586,18.06894858,86.146,86.111,3.92693288]
[1773190974785,18.06894858,86.145,86.111,3.92693288]
[1773190975092,8.81794244,86.144,86.111,3.92693288]
[1773190975390,8.81794244,86.143,86.111,3.92693288]
[1773190975591,8.81794244,86.142,86.111,3.92693288]
[1773190975795,8.81794244,86.141,86.111,3.92693288]
[1773190975986,8.81794244,86.14,86.111,3.92693288]
[1773190976186,2.36634189,86.152,86.111,3.92693288]
[1773190976390,18.06862704,86.151,86.111,3.92693288]
[1773190976587,18.06862704,86.15,86.12,3.44732488]
[1773190976792,18.06862704,86.149,86.121,3.8662066]
[1773190977094,8.817939,86.148,86.121,3.8662066]
[1773190977295,8.817939,86.147,86.121,3.8662066]
[1773190977494,8.817939,86.146,86.121,3.8662066]
[1773190977696,8.817939,86.145,86.121,3.8662066]
[1773190977994,8.817939,86.144,86.121,3.8662066]
[1773190978295,2.35272428,86.165,86.121,3.8662066]
[1773190978492,2.37012788,86.163,86.121,3.8662066]
[1773190978695,20.43818198,86.162,86.121,3.8662066]
[1773190978894,2.37012788,86.16,86.121,3.8662066]
[1773190979096,18.0680541,86.159,86.121,3.8662066]
[1773190979395,18.0680541,86.158,86.121,3.8662066]
[1773190979595,18.0680541,86.157,86.121,3.8662066]
[1773190979797,18.0680541,86.156,86.121,3.8662066]
[1773190979997,18.0680541,86.155,86.121,3.8662066]
[1773190980197,18.0680541,86.154,86.121,3.8662066]
[1773190980398,18.0680541,86.153,86.121,3.8662066]
[1773190980598,18.0680541,86.152,86.121,3.8662066]
[1773190980800,18.0680541,86.151,86.121,3.8662066]
[1773190980999,18.0680541,86.15,86.121,3.8662066]
[1773190981201,8.81763112,86.149,86.121,3.8662066]
[1773190981501,8.81763112,86.148,86.121,3.8662066]
[1773190981707,2.37012788,86.16,86.121,3.8662066]
[1773190981905,18.06628827,86.159,86.121,3.8662066]
[1773190982204,18.06628827,86.158,86.121,3.8662066]
[1773190982407,18.06628827,86.157,86.121,3.8662066]
[1773190982608,20.43602025,86.156,86.121,3.8662066]
[1773190982802,18.06628827,86.155,86.121,3.8662066]
[1773190983105,18.06628827,86.154,86.121,3.8662066]
[1773190983305,18.06628827,86.153,86.121,3.8662066]
[1773190983507,8.81681327,86.152,86.121,3.8662066]
[1773190983706,8.81681327,86.151,86.121,3.8662066]
[1773190983906,8.81681327,86.15,86.121,3.8662066]
[1773190984106,8.81681327,86.149,86.121,3.8662066]
[1773190984309,8.81681327,86.148,86.121,3.8662066]
[1773190984609,2.35345689,86.169,86.121,3.8662066]
[1773190984796,18.06916924,86.168,86.121,3.8662066]
[1773190985000,18.06916924,86.167,86.121,3.8662066]
[1773190985203,2.35345689,86.165,86.121,3.8662066]
[1773190985402,2.3426123,86.163,86.121,3.8662066]
[1773190985603,2.3426123,86.161,86.121,3.8662066]
[1773190985808,2.3426123,86.159,86.121,3.8662066]
[1773190986110,18.06916924,86.158,86.121,3.8662066]
[1773190986307,2.3426123,86.159,86.121,3.8662066]
[1773190986308,18.06916924,86.157,86.121,3.8662066]
[1773190986607,18.06916924,86.156,86.121,3.8662066]
[1773190986802,18.06916924,86.155,86.121,3.8662066]
[1773190987008,18.06916924,86.154,86.121,3.8662066]
[1773190987199,18.06916924,86.153,86.121,3.8662066]
[1773190987506,18.06916924,86.152,86.121,3.8662066]
[1773190987707,8.81820653,86.151,86.121,3.8662066]
[1773190987909,8.81820653,86.15,86.121,3.8662066]
[1773190988108,8.81820653,86.149,86.121,3.8662066]
[1773190988308,8.81820653,86.148,86.121,3.8662066]
[1773190988502,8.81820653,86.147,86.121,3.8662066]
[1773190988699,2.3426123,86.159,86.107,3.8662066]
[1773190988904,2.3426123,86.159,86.033,36.19957784]
[1773190988905,2.33847533,86.141,86.091,3.8662066]
[1773190989107,2.33847533,86.139,86.091,3.8662066]
[1773190989409,18.07611627,86.138,86.091,3.8662066]
[1773190989711,18.07611627,86.137,86.091,3.8662066]
[1773190989906,18.07611627,86.136,86.091,3.8662066]
[1773190990107,8.82155874,86.135,86.091,3.8662066]
[1773190990302,8.82155874,86.134,86.091,3.8662066]
[1773190990508,8.82155874,86.133,86.093,3.8662066]
[1773190990703,8.82155874,86.132,86.093,3.8662066]
[1773190990906,2.33811517,86.123,86.079,3.8662066]
[1773190991214,2.33811517,86.121,86.079,3.8662066]
[1773190991509,2.33456623,86.119,86.079,3.8662066]
[1773190991712,8.82155874,86.118,86.079,3.8662066]
[1773190991911,2.33456623,86.119,86.079,3.8662066]
[1773190992509,2.33456623,86.119,86.08,3.44732488]
[1773190994510,2.33456623,86.119,86.079,3.8662066]
[1773190994711,2.33456623,86.119,86.08,3.44732488]
[1773190995509,2.33456623,86.119,86.08,7.31353148]
[1773190995714,2.33456623,86.119,86.08,7.31756968]
[1773190995920,8.81192923,86.118,86.08,7.31756968]
[1773190996119,2.25903992,86.116,86.08,7.31756968]
[1773190996319,2.25903992,86.116,86.08,3.8662066]
[1773190996812,2.25903992,86.116,86.011,34.89]
[1773190996813,2.25903992,86.116,86.069,3.8662066]
[1773190997018,2.25903992,86.116,86.049,10.458]
[1773190997019,2.25903992,86.109,86.058,3.8662066]
[1773190997212,2.25903992,86.107,86.058,3.8662066]
[1773190997412,2.30675036,86.102,86.058,3.8662066]
[1773190997612,2.30675036,86.1,86.058,3.8662066]
[1773190997818,2.30675036,86.098,86.058,3.8662066]
[1773190998118,2.30675036,86.098,86.06,3.45136308]
[1773190999115,2.30675036,86.098,86.058,3.8662066]
[1773191000723,2.31876318,86.096,86.047,3.80486281]
[1773191000924,3.45136308,86.1,86.047,3.80486281]
[1773191000925,2.31876318,86.094,86.047,3.80486281]
[1773191001122,8.7941717,86.095,86.047,3.80486281]
[1773191001123,2.31876318,86.092,86.047,3.80486281]
[1773191001923,2.33054422,86.086,86.031,3.80486281]
[1773191002118,162.492,86.154,85.975,20.935]
[1773191002119,10.83244706,86.118,86.051,3.80486281]
[1773191002324,2.33054422,86.109,86.051,3.80486281]
[1773191002527,2.33054422,86.107,86.051,3.80486281]
[1773191002726,2.33054422,86.105,86.051,3.80486281]
[1773191002927,2.33054422,86.103,86.051,3.80486281]
[1773191003126,2.33054422,86.101,86.051,3.80486281]
[1773191003325,2.42728169,86.1,86.051,3.80486281]
[1773191006529,2.42684528,86.096,86.04,3.45136308]
[1773191006729,2.42684528,86.096,86.041,3.80486281]
[1773191007229,2.42684528,86.096,86.051,3.80486281]
[1773191009326,2.42589316,86.094,86.051,3.80486281]
[1773191014527,10.453,86.09,86.051,3.80486281]
[1773191014733,12.82790503,86.09,86.051,3.80486281]
[1773191016431,2.36967691,86.089,86.051,3.80486281]
[1773191021231,3.7263599,86.079,85.973,34.89]
[1773191021435,3.7263599,86.059,86.0,3.45136308]
[1773191022333,10.458,86.049,86.0,3.45136308]
[1773191022533,14.1843599,86.049,86.0,3.45136308]
[1773191022934,14.1843599,86.049,86.01,3.45136308]
[1773191023131,3.7263599,86.042,85.99,3.45136308]
[1773191023330,3.7263599,86.042,85.991,3.80486281]
[1773191023740,3.7263599,86.037,85.991,3.80486281]
[1773191026439,10.46,86.036,85.991,3.80486281]
[1773191028836,3.8685812,86.027,85.991,3.80486281]
[1773191029039,3.45136308,86.05,85.944,2.023197]
[1773191029040,3.8685812,86.05,86.001,3.70709907]
[1773191029736,14.29045528,86.044,86.001,3.70709907]
[1773191030037,3.83145528,86.043,86.001,3.70709907]
[1773191030240,3.83145528,86.059,86.011,3.79591076]
[1773191030428,3.83145528,86.059,85.944,2.023197]
[1773191030429,3.83145528,86.059,86.021,3.79591076]
[1773191034545,10.456,86.068,86.031,3.79591076]
[1773191034945,14.28745528,86.068,86.031,3.79591076]
[1773191035246,14.28745528,86.068,86.012,10.463]
[1773191035247,3.83145528,86.063,86.019,3.79591076]
[1773191035946,3.83145528,86.076,86.031,3.79591076]
[1773191036146,3.83145528,86.076,86.041,3.79591076]
[1773191036741,3.83145528,86.076,86.041,0.00091076]
[1773191037344,9.21180047,86.075,86.03,3.45136308]
[1773191037547,3.83145528,86.074,86.03,3.45136308]
[1773191038349,10.456,86.068,86.03,3.45136308]
[1773191038850,10.456,86.068,86.031,3.79591076]
[1773191040450,3.83145528,86.074,86.04,3.45136308]
[1773191041048,10.454,86.083,86.041,3.79591076]
[1773191041254,9.22670373,86.082,86.06,3.45136308]
[1773191041456,3.83145528,86.099,86.06,3.45136308]
[1773191041649,9.22612962,86.098,86.06,3.45136308]
[1773191041850,9.22612962,86.097,86.06,3.45136308]
[1773191042153,9.22612962,86.096,86.06,3.45136308]
[1773191042354,9.22612962,86.095,86.07,3.45136308]
[1773191042555,3.83145528,86.112,86.071,3.79591076]
[1773191042742,9.22578174,86.111,86.071,3.79591076]
[1773191042948,3.83145528,86.109,86.07,3.45136308]
[1773191043244,3.83145528,86.107,86.07,3.45136308]
[1773191043448,9.22578174,86.106,86.07,3.45136308]
[1773191043649,9.22578174,86.105,86.07,3.45136308]
[1773191043843,9.22578174,86.104,86.07,3.45136308]
[1773191044051,9.22578174,86.103,86.07,3.45136308]
[1773191044249,3.83145528,86.107,86.07,3.45136308]
[1773191044446,10.451,86.104,86.07,3.45136308]
[1773191044649,3.83145528,86.107,86.046,10.458]
[1773191044650,3.83145528,86.107,86.08,3.45136308]
[1773191044951,9.22658105,86.106,86.08,3.45136308]
[1773191045149,9.22658105,86.105,86.08,3.45136308]
[1773191045455,9.22658105,86.104,86.08,3.45136308]
[1773191045756,3.83145528,86.107,86.08,3.45136308]
[1773191046055,9.22696126,86.106,86.08,3.45136308]
[1773191046252,9.22696126,86.105,86.08,0.00036308]
[1773191046455,3.83145528,86.107,86.072,2.49316096]
[1773191046657,9.22648611,86.106,86.072,2.49316096]
[1773191046856,9.22648611,86.105,86.072,2.49316096]
[1773191047054,3.83145528,86.107,86.072,2.49316096]
[1773191047255,9.22648611,86.106,86.072,2.49316096]
[1773191047551,10.451,86.106,86.072,2.49316096]
[1773191047754,4.083975,86.104,86.06,3.45136308]
[1773191048456,10.452,86.098,86.06,3.45136308]
[1773191049559,4.083975,86.104,86.07,3.45136308]
[1773191050558,10.452,86.102,86.07,3.45136308]
[1773191052059,10.451,86.11,86.08,3.45136308]
[1773191052260,14.35862093,86.141,86.004,34.89]
[1773191052261,4.05864286,86.128,86.09,3.45136308]
[1773191052461,4.05864286,86.119,86.08,3.45136308]
[1773191053361,10.451,86.112,86.08,3.45136308]
[1773191054062,10.451,86.112,86.07,3.45136308]
[1773191054263,10.451,86.112,86.08,3.45136308]
[1773191054466,4.05864286,86.119,86.09,3.45136308]
[1773191056160,4.05864286,86.119,86.08,3.45136308]
[1773191056358,10.45,86.118,86.08,3.45136308]
[1773191057565,10.45,86.118,86.08,3.45078065]
[1773191057770,4.06612995,86.146,86.11,3.45078065]
[1773191059267,4.06612995,86.146,86.11,0.00078065]
[1773191059470,4.06325095,86.134,86.1,3.45078065]
[1773191059669,4.06325095,86.134,86.007,162.767]
[1773191059670,4.06325095,86.134,86.08,3.45078065]
[1773191060577,4.06325095,86.134,85.966,488.54]
[1773191060578,4.06327665,86.111,85.992,11.63]
[1773191060873,4.06327665,86.099,86.04,3.45078065]
[1773191061071,10.455,86.072,86.03,3.45078065]
[1773191061270,4.06327665,86.077,86.03,3.45078065]
[1773191061672,4.06327665,86.077,86.02,3.45078065]
[1773191062377,4.072845,86.072,86.03,3.45078065]
[1773191062779,3.45078065,86.09,85.97,34.89]
[1773191062780,4.072845,86.086,86.04,3.45078065]
[1773191063777,10.455,86.075,86.04,3.45078065]
[1773191063979,10.455,86.075,86.03,3.45078065]
[1773191065975,10.454,86.084,86.04,3.45078065]
[1773191066581,10.454,86.084,86.03,3.45078065]
[1773191067880,4.11418757,86.067,86.02,3.45078065]
[1773191068882,10.456,86.067,86.02,3.45078065]
[1773191069483,10.455,86.076,86.02,3.45078065]
[1773191069883,4.12494569,86.075,86.0,10.464]
[1773191070182,3.45078065,86.07,86.02,3.45078065]
[1773191070983,10.78562167,86.107,85.97,34.87]
[1773191070984,9.21847578,86.099,86.05,3.45078065]
[1773191071185,4.12494569,86.103,86.05,3.45078065]
[1773191071681,10.452,86.102,86.05,3.45078065]
[1773191072879,4.12494569,86.103,86.06,3.45078065]
[1773191074780,10.451,86.112,86.06,3.45078065]
[1773191074987,4.127469,86.118,86.08,3.45078065]
[1773191075192,10.45,86.12,86.08,3.45078065]
[1773191075384,10.449,86.128,86.08,3.45078065]
[1773191075983,14.57903629,86.107,86.06,3.45078065]
[1773191076187,4.12803629,86.106,86.06,3.45078065]
[1773191078286,10.451,86.105,86.06,3.45078065]
[1773191082997,4.154516,86.119,86.07,3.45078065]
[1773191084197,9.23327263,86.118,86.07,3.45078065]
[1773191084398,4.154516,86.119,86.07,3.45078065]
[1773191084697,9.2334763,86.118,86.07,3.45078065]
[1773191084898,4.154516,86.119,86.07,3.45078065]
[1773191085192,9.23347487,86.118,86.07,3.45078065]
[1773191085397,4.154516,86.119,86.07,3.45078065]
[1773191085595,9.2336889,86.118,86.07,3.45078065]
[1773191085795,4.154516,86.119,86.07,3.45078065]
[1773191086090,13.89878065,86.13,86.08,3.45078065]
[1773191086293,4.15370374,86.153,86.09,3.45078065]
[1773191086495,14.59970374,86.151,86.1,3.45078065]
[1773191088103,4.1480156,86.144,86.1,3.45078065]
[1773191090291,10.447,86.142,86.1,3.45078065]
[1773191090497,4.14319635,86.139,86.09,3.45078065]
[1773191095503,10.448,86.136,86.09,3.45078065]
[1773191097101,14.59563483,86.136,86.09,3.45078065]
[1773191097904,4.14846283,86.135,86.09,3.45078065]
[1773191100705,10.447,86.145,86.1,3.45078065]
[1773191101009,4.15119823,86.152,86.12,3.45078065]
[1773191101601,10.444,86.163,86.12,3.45078065]
[1773191102101,4.15118346,86.169,86.12,3.45078065]
[1773191103510,4.15285659,86.167,86.12,3.45078065]
[1773191104410,4.15285659,86.164,86.12,3.45078065]
[1773191105408,14.57433765,86.163,86.12,3.45078065]
[1773191105605,4.13033765,86.177,86.13,3.45078065]
[1773191105908,4.13033765,86.19,86.15,3.45078065]
[1773191106307,4.13033765,86.19,86.064,28.64157873]
[1773191106308,4.13033765,86.189,86.13,3.45078065]
[1773191106606,4.13033765,86.189,86.15,3.45078065]
[1773191107206,4.13033765,86.189,86.092,34.87]
[1773191107412,4.13033765,86.189,86.15,3.45078065]
[1773191107711,4.13033765,86.189,86.14,3.45078065]
[1773191109107,4.13033765,86.189,86.15,3.45078065]
[1773191110500,10.44,86.198,86.15,3.45078065]
[1773191110702,7.55598975,86.21,86.16,3.45078065]
[1773191110903,3.45078065,86.22,86.17,3.45078065]
[1773191111216,4.1052091,86.236,86.19,3.45078065]
[1773191111511,4.09323229,86.229,86.17,3.45078065]
[1773191111706,4.09323229,86.219,86.17,3.45078065]
[1773191112615,10.437,86.226,86.17,3.45078065]
[1773191112916,7.54401294,86.23,86.18,3.45078065]
[1773191113412,2.01888938,86.284,86.118,34.87]
[1773191113413,4.09101768,86.219,86.17,3.45078065]
[1773191115712,4.09101768,86.219,86.063,40.27157873]
[1773191115713,13.88478065,86.25,86.2,3.45078065]
[1773191116216,4.08939561,86.247,86.19,3.45078065]
[1773191116416,4.08939561,86.239,86.18,3.45078065]
[1773191116617,4.08939561,86.229,86.17,3.45078065]
[1773191116819,4.08939561,86.219,86.16,3.45078065]
[1773191117414,3.45078065,86.21,86.16,3.45078065]
[1773191118308,4.08939561,86.219,86.166,10.444]
[1773191119013,4.08939561,86.219,86.17,3.45078065]
[1773191119615,10.438,86.217,86.16,3.44339836]
[1773191120217,10.438,86.217,86.163,10.444]
[1773191121412,10.438,86.217,86.164,0.05082767]
[1773191121618,10.438,86.217,86.171,0.05082767]
[1773191122415,14.47776137,86.217,86.171,0.05082767]
[1773191122616,3.44339836,86.22,86.171,0.05082767]
[1773191122617,3.44339836,86.22,86.172,0.05082767]
[1773191123014,7.48315973,86.21,86.172,0.05082767]
[1773191123322,10.44,86.198,86.151,0.05082767]
[1773191124818,3.44339836,86.2,86.153,0.06360479]
[1773191125121,10.439,86.207,86.161,0.06360479]
[1773191126615,14.49002074,86.207,86.161,0.06360479]
[1773191127120,10.44,86.202,86.161,0.06360479]
[1773191127520,4.05102074,86.206,86.161,0.06360479]
[1773191127719,4.03761976,86.224,86.171,0.05511089]
[1773191128014,3.44339836,86.21,86.171,0.05511089]
[1773191128221,14.47661976,86.209,86.171,0.05511089]
[1773191128423,4.03761976,86.208,86.16,10.50011089]
[1773191128717,4.03761976,86.208,86.161,0.05511089]
[1773191129320,10.438,86.216,86.161,0.05511089]
[1773191129620,14.35862093,86.277,86.16,3.44339836]
[1773191129621,4.01543328,86.212,86.165,0.09948385]
[1773191130312,4.01543328,86.212,86.167,10.444]
[1773191130514,3.44339836,86.22,86.171,0.09948385]
[1773191130715,4.01543328,86.231,86.191,0.09948385]
[1773191130919,4.01543328,86.246,86.191,0.09948385]
[1773191131123,10.435,86.24,86.191,0.09948385]
[1773191131319,13.87839836,86.24,86.191,0.09948385]
[1773191131527,4.01543328,86.246,86.201,0.09977235]
[1773191131920,4.01528903,86.229,86.183,0.09977235]
[1773191132521,4.01528903,86.229,86.19,3.44339836]
[1773191132717,4.01528903,86.229,86.19,3.54317071]
[1773191132928,10.435,86.242,86.193,10.441]
[1773191133216,4.01528903,86.239,86.19,3.44339836]
[1773191133423,4.01528903,86.239,86.18,3.44339836]
[1773191133724,8.83014196,86.273,86.125,34.87]
[1773191133725,4.09175664,86.219,86.16,3.44339836]
[1773191133920,4.09175664,86.209,86.16,3.44339836]
[1773191134116,4.09175664,86.208,86.162,10.444]
[1773191136920,4.09175664,86.208,86.125,34.87]
[1773191136921,4.14663766,86.206,86.125,34.87]
[1773191137127,20.869,86.247,86.099,20.904]
[1773191137128,4.14663766,86.199,86.14,3.44339836]
[1773191137423,4.14663766,86.199,86.15,3.44339836]
[1773191139627,4.17843984,86.196,86.149,10.446]
[1773191140121,4.17843984,86.189,86.102,34.87]
[1773191140319,4.17843984,86.179,86.12,3.44339836]
[1773191140523,4.17843984,86.169,86.12,3.44339836]
[1773191140928,4.17843984,86.169,86.122,10.449]
[1773191142128,4.18898859,86.193,86.14,3.44339836]
[1773191143327,4.18898859,86.193,86.141,10.447]
[1773191143628,4.18854104,86.219,86.12,9.22852767]
[1773191144230,4.18854104,86.214,86.157,10.445]
[1773191144722,14.62754104,86.211,86.157,10.445]
[1773191146728,4.25997651,86.21,86.157,10.445]
[1773191147730,4.25997651,86.21,86.14,9.22852767]
[1773191149325,4.26914111,86.208,86.14,9.22852767]
[1773191149630,4.26914111,86.208,86.12,9.22852767]
[1773191150123,4.26914111,86.186,86.13,10.448]
[1773191150323,4.26914111,86.186,86.096,34.87]
[1773191150324,4.26914111,86.186,86.101,28.64157873]
[1773191151329,4.26902957,86.177,86.129,10.448]
[1773191151529,4.26927326,86.191,86.101,28.64157873]
[1773191152231,4.26927326,86.189,86.101,28.64157873]
[1773191152430,4.26927326,86.187,86.1,9.22852767]
[1773191153233,4.26927326,86.185,86.128,10.449]
[1773191153433,4.26927326,86.185,86.1,9.22852767]
[1773191153835,10.442,86.181,86.125,10.449]
[1773191154036,4.26936107,86.18,86.125,10.449]
[1773191154442,4.26936107,86.17,86.117,10.45]
[1773191155337,10.444,86.169,86.125,10.449]
[1773191155942,4.2694144,86.168,86.125,10.449]
[1773191156647,4.2694144,86.168,86.1,9.22852767]
[1773191158348,10.444,86.166,86.115,10.45]
[1773191160139,4.2694144,86.168,86.122,10.449]
[1773191163243,10.444,86.167,86.122,10.449]
[1773191163446,4.26337673,86.166,86.122,10.449]
[1773191165646,4.30077266,86.159,86.122,10.449]
[1773191166646,4.30077266,86.149,86.111,10.45]
[1773191168851,4.30077266,86.149,86.103,10.451]
[1773191169145,4.30077266,86.149,86.064,20.913]
[1773191169146,4.29466963,86.129,86.07,3.44785034]
[1773191169749,4.29469962,86.119,86.04,20.919]
[1773191169950,4.29469962,86.119,86.07,3.44785034]
[1773191170152,10.45,86.118,86.07,3.44785034]
[1773191170353,4.29469962,86.109,86.068,10.456]
[1773191172245,3.44785034,86.12,86.076,10.455]
[1773191172455,4.31970968,86.123,86.08,3.44785034]
[1773191172953,4.31970968,86.139,86.08,3.44785034]
[1773191173353,14.76670968,86.139,86.086,10.454]
[1773191173753,4.30559195,86.138,86.086,10.454]
[1773191175249,4.30559195,86.138,86.09,3.44785034]
[1773191175844,4.30559195,86.138,86.092,10.453]
[1773191177054,4.30559195,86.138,86.081,10.454]
[1773191177360,4.30559195,86.138,86.09,3.44785034]
[1773191179360,4.30559195,86.138,86.092,10.453]
[1773191181662,4.30415884,86.135,86.092,10.453]
[1773191185064,4.30386278,86.133,86.092,10.453]
[1773191190764,4.31060654,86.147,86.1,3.44961205]
[1773191190960,4.31060654,86.147,86.11,3.44961205]
[1773191192663,4.31060654,86.147,86.1,3.44961205]
[1773191192863,4.30920328,86.139,86.09,3.44961205]
[1773191194368,4.30920328,86.139,86.097,10.452]
[1773191199374,9.16983504,86.18,86.061,34.87]
[1773191199375,4.30371502,86.152,86.105,10.451]
[1773191199972,10.446,86.151,86.105,10.451]
[1773191201067,14.74055044,86.151,86.105,10.451]
[1773191202170,10.446,86.149,86.105,10.451]
[1773191202973,14.74028689,86.149,86.105,10.451]
[1773191203373,14.74450804,86.142,86.093,10.453]
[1773191204070,4.29750804,86.141,86.093,10.453]
[1773191204271,4.29750804,86.139,86.093,10.453]
[1773191204575,4.29750804,86.137,86.093,10.453]
[1773191206475,4.29792495,86.135,86.093,10.453]
[1773191207275,4.29792495,86.133,86.093,10.453]
[1773191207775,4.29792495,86.133,86.08,3.44961205]
[1773191208078,4.29792495,86.133,85.857,143.208293]
[1773191208079,4.29573868,86.109,86.05,3.44961205]
[1773191208476,7.74533994,86.1,86.05,3.44961205]
[1773191208676,4.29572789,86.099,86.05,3.44961205]
[1773191209375,4.29572789,86.099,86.051,10.458]
[1773191210176,3.44961205,86.11,86.05,3.44961205]
[1773191210375,4.29674602,86.116,86.06,3.44961205]
[1773191211383,4.29005533,86.112,86.067,10.456]
[1773191211786,3.44961205,86.11,86.067,10.456]
[1773191213888,10.449,86.122,86.071,10.455]
[1773191214787,10.45,86.119,86.071,10.455]
[1773191215188,4.30198774,86.118,86.071,10.455]
[1773191215386,4.30198774,86.097,86.05,3.44961205]
[1773191215681,4.30263566,86.109,86.05,3.44961205]
[1773191215883,4.30263566,86.109,86.06,3.44961205]
[1773191216487,10.451,86.106,86.062,10.456]
[1773191217793,4.30263566,86.109,86.062,10.456]
[1773191220296,4.30305881,86.105,86.06,3.44961205]
[1773191220495,4.30305881,86.099,86.052,10.458]
[1773191220697,4.30305881,86.099,86.04,3.44961205]
[1773191220992,3.44961205,86.12,86.06,3.44961205]
[1773191221191,4.30305881,86.119,86.07,3.44961205]
[1773191221391,10.451,86.111,86.07,3.44961205]
[1773191222598,10.451,86.111,86.061,10.457]
[1773191223195,4.30275237,86.118,86.07,3.44961205]
[1773191223392,4.30275237,86.118,86.08,3.44961205]
[1773191223895,4.30275237,86.118,86.07,13.90561205]
[1773191224193,10.449,86.124,86.09,3.44961205]
[1773191224398,4.2933433,86.149,86.1,3.44961205]
[1773191225502,4.26848024,86.141,86.1,3.44961205]
[1773191227206,10.446,86.151,86.11,3.44961205]
[1773191228606,10.446,86.151,86.101,10.452]
[1773191228607,4.29615329,86.144,86.1,3.44961205]
[1773191228808,4.29615329,86.144,86.09,3.44961205]
[1773191230610,4.29599136,86.141,86.09,3.44961205]
[1773191231509,4.29230418,86.138,86.09,3.44961205]
[1773191233106,4.29230418,86.138,86.091,10.453]
[1773191234707,10.446,86.148,86.1,3.44961205]
[1773191234910,10.446,86.148,86.11,3.44961205]
[1773191235311,4.29447047,86.144,86.09,3.44961205]
[1773191236211,4.29456198,86.14,86.091,10.453]
[1773191237608,4.29456198,86.14,86.1,3.44961205]
[1773191238713,4.29587542,86.136,86.1,3.44961205]
[1773191239008,4.29587542,86.148,86.1,3.44961205]
[1773191239207,4.29587542,86.148,86.11,3.44961205]
[1773191239412,4.29587542,86.161,86.12,3.44961205]
[1773191240315,4.29587542,86.161,86.047,162.692]
[1773191240316,4.29587542,86.161,86.13,3.44961205]
[1773191240715,4.29587542,86.161,86.11,3.44961205]
[1773191241814,4.28135627,86.16,86.12,3.44961205]
[1773191242709,4.28135627,86.158,86.1,3.44961205]
[1773191243518,4.2920114,86.143,86.09,3.44961205]
[1773191243719,4.2920114,86.143,86.09,3.44936093]
[1773191245312,4.29139979,86.14,86.09,3.44936093]
[1773191245816,4.29139979,86.159,86.11,3.44936093]
[1773191246020,4.29139979,86.158,86.11,3.44936093]
[1773191247309,10.445,86.156,86.11,3.44936093]
[1773191247518,4.29227228,86.155,86.11,3.44936093]
[1773191248317,10.446,86.153,86.11,3.44936093]
[1773191248515,3.44936093,86.15,86.1,3.44936093]
[1773191248721,4.29227228,86.149,86.1,3.44936093]
[1773191249322,4.29227228,86.149,86.11,3.44936093]
[1773191250426,4.30506739,86.148,86.11,3.44936093]
[1773191254516,10.445,86.159,86.12,3.44936093]
[1773191254823,4.30021524,86.16,86.12,3.44936093]
[1773191255724,14.74521524,86.16,86.12,3.44936093]
[1773191256423,14.74521524,86.16,86.118,10.45]
[1773191257721,14.74521524,86.16,86.12,3.44936093]
[1773191260717,14.74521524,86.16,86.118,10.45]
[1773191261420,4.29930381,86.159,86.118,10.45]
[1773191263427,20.882,86.194,86.065,34.87]
[1773191263428,4.2992325,86.149,86.065,34.87]
[1773191263730,4.2992325,86.149,86.1,3.44936093]
[1773191263926,4.2992325,86.149,86.09,3.44936093]
[1773191264432,4.2992325,86.138,86.092,10.453]
[1773191264830,4.2992325,86.136,86.092,10.453]
[1773191266330,10.448,86.134,86.092,10.453]
[1773191266835,14.74709565,86.134,86.092,10.453]
[1773191269933,4.29315679,86.133,86.09,3.44936093]
[1773191270237,4.29315679,86.13,86.084,10.454]
[1773191271438,4.28518363,86.128,86.084,10.454]
[1773191277843,4.28946603,86.139,86.093,10.453]
[1773191278641,4.28946603,86.139,86.1,3.44936093]
[1773191280141,4.284508,86.136,86.1,3.44936093]
[1773191280341,4.284508,86.136,86.093,10.453]
[1773191281438,10.448,86.135,86.093,10.453]
[1773191285240,4.28789844,86.13,86.083,10.454]
[1773191286046,3.44936093,86.14,86.09,3.44936093]
[1773191286248,4.28737739,86.143,86.1,3.44936093]
[1773191286435,3.44936093,86.16,86.11,3.44936093]
[1773191286436,4.28737739,86.159,86.11,3.44936093]
[1773191287046,4.28737739,86.159,86.056,36.19957784]
[1773191287047,4.28737739,86.173,86.13,3.44936093]
[1773191287243,4.28737739,86.173,86.14,3.44936093]
[1773191287443,4.28737739,86.173,86.12,3.44936093]
[1773191287742,4.30398327,86.169,86.12,3.44936093]
[1773191288445,4.30398327,86.168,86.12,3.44936093]
[1773191289543,4.30681517,86.157,86.12,3.44936093]
[1773191289845,4.30681517,86.157,86.11,3.44936093]
[1773191291144,4.30681517,86.155,86.12,3.44936093]
[1773191291344,4.30681517,86.179,86.13,3.44936093]